fUSD/lending_fUSD_20241016
["ID","MTS","AMOUNT","RATE_DAILY","PERIOD"]
[340341596,1729073438460,-1000.0,0.00010999,2]
[340341597,1729073438470,-500.0,0.00010999,2]
[340341598,1729073438479,-500.0,0.00010999,2]
[340341599,1729073438488,-500.0,0.00010999,2]
[340341600,1729073438498,-500.0,0.00010999,2]
[340341601,1729073438507,-500.0,0.00010999,2]
[340341602,1729073438517,-500.0,0.00010999,2]
[340341603,1729073438527,-500.0,0.00010999,2]
[340341604,1729073438539,-500.0,0.00010999,2]
[340341605,1729073438548,-500.0,0.00010999,2]
[340341606,1729073438558,-397.64863863,0.00010999,2]
[340341607,1729073438567,-500.0,0.00010999,2]
[340341608,1729073438577,-500.0,0.00010999,2]
[340341609,1729073438586,-409.16784488,0.00010999,2]
[340341610,1729073438595,-500.0,0.00010999,2]
[340341611,1729073438605,-474.92721326,0.00010999,2]
[340341612,1729073438615,-525224.33279337,0.00011,2]
[340341613,1729073438626,-1295.859177,0.00011,2]
[340341614,1729073438678,-262.77197007,0.00011,2]
[340341615,1729073438690,-350.72350113,0.00011,2]
[340341624,1729073440159,-5235.73527547,0.00011,2]
[340341626,1729073440171,-4640.35341479,0.00011,2]
[340341627,1729073440186,-12674.41551221,0.00011,2]
[340341628,1729073440199,-2291.83755386,0.00011,2]
[340341629,1729073440211,-266.56,0.00011,2]
[340341630,1729073440222,-1086.00001,0.00011,2]
[340341631,1729073440326,-2363.9,0.00011,2]
[340341632,1729073440338,-1683.43135096,0.00011,2]
[340341633,1729073440349,-1877.98943013,0.00011,2]
[340341634,1729073440360,-3984.37746997,0.00011,2]
[340341635,1729073440371,-884.16644664,0.00011,2]
[340341636,1729073440382,-505.2624392,0.00011,2]
[340341637,1729073440396,-6058.74999999,0.00011,2]
[340341638,1729073440471,-1641.30252,0.00011,2]
[340341639,1729073440483,-588.2445,0.00011,2]
[340341640,1729073440499,-1600.65,0.00011,2]
[340341711,1729073443369,-17256.15808209,0.00011,2]
[340341713,1729073443380,-1578.62846982,0.00011,2]
[340341715,1729073443395,-472.8632825,0.00011,2]
[340341719,1729073443423,-759.5749,0.00011,2]
[340341722,1729073443434,-455030.2360271,0.00011,2]
[340341724,1729073443448,-383.20020393,0.00011,2]
[340341736,1729073443561,-920.99541434,0.00011,2]
[340341738,1729073443572,-715.77,0.00011,2]
[340341740,1729073443583,-9117.48,0.00011,2]
[340341742,1729073443594,-5630.95657849,0.00011,2]
[340341745,1729073443605,-1353.70163711,0.00011,2]
[340341747,1729073443616,-490.45,0.00011,2]
[340341814,1729073446198,-764.87888535,0.00011,2]
[340341815,1729073446218,-1320.45,0.00011,2]
[340341816,1729073446243,-1781.2507,0.00011,2]
[340341817,1729073446255,-1553.6,0.00011,2]
[340341818,1729073446266,-1185.57,0.00011,2]
[340341819,1729073446278,-5884.21188928,0.00011,2]
[340341820,1729073446289,-138489.41782416,0.00011,2]
[340341821,1729073446300,-1619.45,0.00011,2]
[340341822,1729073446312,-740.40033588,0.00011,2]
[340341823,1729073446402,-1097.57852725,0.00011,2]
[340341824,1729073446414,-446.22781876,0.00011,2]
[340341825,1729073446425,-635249.5850286,0.00011,2]
[340341826,1729073446436,-585.71,0.00011,2]
[340341827,1729073446448,-1356.26975708,0.00011,2]
[340341828,1729073446459,-1034.05360558,0.00011,2]
[340341829,1729073446471,-246073.90721488,0.00011,2]
[340341830,1729073446754,-49260.54935877,0.00011,2]
[340341831,1729073446765,-19635.86764951,0.00011,2]
[340341832,1729073446776,-729.12371714,0.00011,2]
[340341833,1729073446787,-939.883994,0.00011,2]
[340341834,1729073446798,-453.46218221,0.00011,2]
[340341835,1729073446809,-4919.07120143,0.00011,2]
[340341836,1729073446821,-400000.21265277,0.00011,2]
[340341837,1729073446836,-557.08463898,0.00011,2]
[340341838,1729073446847,-1919.57705919,0.00011,2]
[340341839,1729073446858,-2055.10722494,0.00011,2]
[340341840,1729073467756,250.0,9.92e-05,2]
[340341841,1729073515665,284.05,9.92e-05,2]
[340341842,1729073515686,23615.95,9.92e-05,2]
[340341843,1729073610934,250.0,9.92e-05,2]
[340341844,1729073642621,1000.0,9.92e-05,2]
[340341845,1729073673444,162.67,9.92e-05,2]
[340341846,1729073676590,163.92,9.92e-05,2]
[340341847,1729073694763,279.97,9.92e-05,2]
[340341848,1729073716706,1133.73,8.219e-05,2]
[340341849,1729073727244,466.16,9.92e-05,2]
[340341850,1729073769595,891.64,9.92e-05,2]
[340341851,1729073800810,527.36,9.92e-05,2]
[340341852,1729073815876,227.88,9.999e-05,2]
[340341853,1729073821825,200.0,9.92e-05,2]
[340341856,1729073858522,344.89,9.92e-05,2]
[340341857,1729074027777,250.0,9.92e-05,2]
[340341858,1729074167927,250.0,9.92e-05,2]
[340341859,1729074180312,200.0,9.92e-05,2]
[340341860,1729074227959,1077.04,8.219e-05,2]
[340341861,1729074299078,445.82,9.92e-05,2]
[340341862,1729074300225,550.0,0.0001,2]
[340341863,1729074343547,159.31,9.92e-05,2]
[340341865,1729074367034,336.53593536,0.0001,2]
[340341868,1729074520343,726.83434358,0.0001,2]
[340341870,1729074552970,517.01474482,0.0001,2]
[340341879,1729074632408,-289.1559,0.00010372,2]
[340341880,1729074632418,-635.392072,0.00010419,2]
[340341881,1729074632427,-1077.04,0.00010472,2]
[340341882,1729074632435,-464.07,0.0001078,2]
[340341883,1729074632445,-2182.08115811,0.00010899,2]
[340341884,1729074632453,-150.0,0.00010899,2]
[340341885,1729074632462,-23733.8697,0.000109,2]
[340341886,1729074632472,-293.9926,0.000109,2]
[340341887,1729074632482,-954.6292,0.000109,2]
[340341888,1729074632491,-477.5594,0.000109,2]
[340341889,1729074632500,-471.07910621,0.000109,2]
[340341890,1729074632509,-174.19733334,0.000109,2]
[340341891,1729074632518,-357.68,0.00010959,2]
[340341892,1729074632529,-160.2,0.00010959,2]
[340341893,1729074632539,-784.6,0.00010959,2]
[340341894,1729074632549,-250.0,0.00010959,2]
[340341895,1729074632559,-160.53,0.00010959,2]
[340341896,1729074632568,-163.9449931,0.00010973,2]
[340341897,1729074632577,-502.19192715,0.00010973,2]
[340341898,1729074632587,-500.0,0.00010973,2]
[340341899,1729074632598,-2021.28660479,0.00010999,2]
[340341900,1729074632611,-4746.151304,0.00010999,2]
[340341901,1729074632622,-547.61517591,0.00010999,2]
[340341902,1729074632634,-641.43342479,0.00010999,2]
[340341905,1729074632645,-2922.27924407,0.00010999,2]
[340341907,1729074632655,-1617.12,0.00010999,2]
[340341908,1729074632664,-499.99,0.00010999,2]
[340341910,1729074632674,-299.99,0.00010999,2]
[340341912,1729074632684,-602.99,0.00010999,2]
[340341914,1729074632694,-5105.77379862,0.00011,2]
[340341916,1729074632705,-4951.882,0.00011,2]
[340341918,1729074632717,-2526.00418358,0.00011,2]
[340341920,1729074632728,-7156.448132,0.00011,2]
[340341936,1729074632880,-16992.41427056,0.00011,2]
[340342025,1729074638393,-771.26757877,0.00011,2]
[340342026,1729074638405,-3227.97602687,0.00011,2]
[340342027,1729074638416,-5686.33463656,0.00011,2]
[340342028,1729074638494,-135942.0438195,0.00011,2]
[340342029,1729074638505,-5284.25364816,0.00011,2]
[340342030,1729074638516,-1949.84818098,0.00011,2]
[340342031,1729074638526,-1488.87362106,0.00011,2]
[340342032,1729074638557,-518.62206885,0.00011,2]
[340342033,1729074638570,-1168.70766274,0.00011,2]
[340342034,1729074638581,-19643.55116475,0.00011,2]
[340342035,1729074638592,-292.47976513,0.00011,2]
[340342036,1729074638608,-781.39713748,0.00011,2]
[340342037,1729074638801,-307.4777073,0.00011,2]
[340342040,1729074640329,-7687.607788,0.00011,2]
[340342041,1729074640340,-852.05876134,0.00011,2]
[340342042,1729074640353,-2100.05512954,0.00011,2]
[340342043,1729074640365,-4128.97177876,0.00011,2]
[340342044,1729074640377,-377.63072068,0.00011,2]
[340342045,1729074640391,-649.02,0.00011,2]
[340342046,1729074640402,-7118.7285,0.00011,2]
[340342047,1729074640440,-178.63970886,0.000109,2]
[340342048,1729074640449,-785.71575992,0.00011,2]
[340342049,1729074640464,-281.186742,0.00011,2]
[340342050,1729074640475,-5511.00549854,0.00011,2]
[340342051,1729074640488,-424.59072011,0.00011,2]
[340342052,1729074640502,-741.26170525,0.00011,2]
[340342053,1729074640514,-728.32,0.00011,2]
[340342054,1729074640526,-2431.84,0.00011,2]
[340342055,1729074640539,-1942.75788024,0.00011,2]
[340342056,1729074640550,-39412.85223734,0.00011,2]
[340342057,1729074640560,-2929.0557936,0.00011,2]
[340342058,1729074640571,-3857.12769878,0.00011,2]
[340342059,1729074641040,-31971.56757775,0.00011,2]
[340342060,1729074641051,-401.22494678,0.00011,2]
[340342075,1729074643350,-5626.523833,0.00011,2]
[340342076,1729074643439,-640.224,0.00011,2]
[340342077,1729074643450,-1331.51031628,0.00011,2]
[340342078,1729074643461,-2826.0,0.00011,2]
[340342079,1729074643522,-447.3484677,0.00011,2]
[340342080,1729074643533,-3079.99995,0.00011,2]
[340342081,1729074643546,-394.58101345,0.00011,2]
[340342082,1729074643558,-16437.79100406,0.00011,2]
[340342083,1729074643570,-8777.5546034,0.00011,2]
[340342084,1729074643626,-374.28827268,0.00011,2]
[340342085,1729074643638,-707.3898016,0.00011,2]
[340342086,1729074643651,-2126.874996,0.00011,2]
[340342094,1729074646312,-1048.14662573,0.00011,2]
[340342095,1729074646395,-44760.57830407,0.00011,2]
[340342096,1729074646406,-89648.05023031,0.00011,2]
[340342097,1729074646476,-270.74,0.00011,2]
[340342098,1729074646558,-308.01687289,0.00011,2]
[340342099,1729074646570,-13845.02485982,0.00011,2]
[340342100,1729074646581,-3351.56897786,0.00011,2]
[340342101,1729074646592,-286.63722524,0.00011,2]
[340342102,1729074646604,-2641.85,0.00011,2]
[340342110,1729074732503,733.67497624,9.92e-05,2]
[340342111,1729074732527,106.32502376,9.92e-05,2]
[340342112,1729074766810,2551.72,9.92e-05,2]
[340342113,1729074767017,2551.72,9.923e-05,2]
[340342114,1729074767258,2551.72,9.925e-05,2]
[340342115,1729074767458,2551.72,9.928e-05,2]
[340342116,1729074767667,2551.72,9.93e-05,2]
[340342117,1729074767879,2551.72,9.933e-05,2]
[340342118,1729074768104,2551.72,9.936e-05,2]
[340342119,1729074768328,2551.72,9.938e-05,2]
[340342120,1729074768523,2551.72,9.941e-05,2]
[340342121,1729074768745,2551.72,9.943e-05,2]
[340342122,1729074768951,2551.72,9.946e-05,2]
[340342123,1729074769161,2551.72,9.949e-05,2]
[340342124,1729074769382,2551.72,9.951e-05,2]
[340342125,1729074769599,2551.72,9.954e-05,2]
[340342126,1729074769823,2551.72,9.956e-05,2]
[340342127,1729074770032,2551.72,9.959e-05,2]
[340342128,1729074770223,2551.72,9.962e-05,2]
[340342129,1729074770477,2551.72,9.964e-05,2]
[340342130,1729074770708,2551.72,9.967e-05,2]
[340342131,1729074770995,2551.72,9.969e-05,2]
[340342132,1729074802973,1102.82,8.219e-05,2]
[340342133,1729074813448,222.91,9.92e-05,2]
[340342134,1729074830620,23900.0,9.92e-05,2]
[340342135,1729074855176,250.0,9.92e-05,2]
[340342136,1729074868333,250.0,9.92e-05,2]
[340342137,1729074987170,282.95106841,0.000215,40]
[340342138,1729075004090,200.0,9.92e-05,2]
[340342139,1729075042723,505.82,9.92e-05,2]
[340342140,1729075073851,371.09,9.92e-05,2]
[340342142,1729075148634,4308.79,9.92e-05,2]
[340342144,1729075356560,1047.67,9.748e-05,2]
[340342152,1729075831470,-672.0,0.00010522,2]
[340342153,1729075831480,-421.88,0.00010528,2]
[340342154,1729075831489,-222.91,0.00010757,2]
[340342155,1729075831498,-38.587584,0.00010781,2]
[340342156,1729075831510,-1150.412416,0.00010781,2]
[340342157,1729075831519,-150.0,0.00010788,2]
[340342158,1729075831528,-250.0,0.00010849,2]
[340342159,1729075831538,-1146.7510324,0.00010859,2]
[340342160,1729075831549,-2256.5388676,0.00010859,2]
[340342161,1729075831558,-170.61520252,0.00010873,2]
[340342162,1729075831567,-500.0,0.00010873,2]
[340342163,1729075831577,-150.0,0.00010877,2]
[340342164,1729075831586,-1003.13141524,0.00010899,2]
[340342165,1729075831595,-299.99,0.00010899,2]
[340342166,1729075831604,-746.04458777,0.00010899,2]
[340342167,1729075831614,-150.0,0.00010899,2]
[340342168,1729075831623,-1223.67992687,0.000109,2]
[340342169,1729075831634,-1378.58037313,0.000109,2]
[340342170,1729075831643,-1318.0814,0.000109,2]
[340342171,1729075831652,-67755.6093,0.000109,2]
[340342172,1729075831662,-159.85984811,0.000109,2]
[340342173,1729075831671,-2666.9396,0.000109,2]
[340342174,1729075831680,-1597.339,0.000109,2]
[340342175,1729075831689,-18731.6574,0.000109,2]
[340342176,1729075831698,-167.49071049,0.000109,2]
[340342177,1729075831707,-1113.87,0.000109,2]
[340342178,1729075831716,-499.99,0.000109,2]
[340342179,1729075831726,-150.21922956,0.000109,2]
[340342180,1729075831735,-160.91279698,0.000109,2]
[340342181,1729075831744,-960.30444772,0.000109,2]
[340342182,1729075831754,-1100.71,0.00010959,2]
[340342183,1729075831763,-156.83,0.00010959,2]
[340342184,1729075831772,-250.0,0.00010959,2]
[340342185,1729075831781,-150.04,0.00010959,2]
[340342186,1729075831791,-775.36,0.00010959,2]
[340342187,1729075831801,-497.5922489,0.00010973,2]
[340342188,1729075831810,-500.98130933,0.00010973,2]
[340342190,1729075831820,-500.0,0.00010973,2]
[340342192,1729075831830,-2310.48646413,0.00010999,2]
[340342194,1729075831842,-228.30148733,0.00010999,2]
[340342195,1729075831852,-500.0,0.00010999,2]
[340342196,1729075831862,-500.0,0.00010999,2]
[340342197,1729075831873,-500.0,0.00010999,2]
[340342198,1729075831884,-261.45257176,0.00010999,2]
[340342199,1729075831894,-1352.63,0.00010999,2]
[340342200,1729075831904,-512.0,0.00011,2]
[340342201,1729075831914,-248.76059554,0.00011,2]
[340342202,1729075831924,-66039.03637249,0.00011,2]
[340342203,1729075831936,-679.79688,0.00011,2]
[340342204,1729075831953,-793.75,0.00011,2]
[340342205,1729075831964,-962.78095166,0.00011,2]
[340342206,1729075831975,-22253.86192698,0.00011,2]
[340342207,1729075831986,-4729.43617998,0.00011,2]
[340342208,1729075832010,-456.33428005,0.00011,2]
[340342209,1729075832021,-170990.96094,0.00011,2]
[340342219,1729075837621,-1732.8648481,0.00010999,2]
[340342220,1729075837630,-501.41822115,0.00011,2]
[340342221,1729075837642,-6435.05701111,0.00011,2]
[340342222,1729075837653,-3219.975661,0.00011,2]
[340342223,1729075837664,-4183.97458834,0.00011,2]
[340342224,1729075837675,-484.43905378,0.00011,2]
[340342225,1729075837686,-3725.39043297,0.00011,2]
[340342226,1729075837697,-10057.58,0.00011,2]
[340342227,1729075837708,-4852.6012,0.00011,2]
[340342228,1729075837719,-3872.86848327,0.00011,2]
[340342229,1729075837732,-4236.72490095,0.00011,2]
[340342230,1729075837745,-1100.67125844,0.00011,2]
[340342231,1729075837757,-469.45,0.00011,2]
[340342232,1729075837923,-1043.64469996,0.00011,2]
[340342233,1729075837936,-814.62785788,0.00011,2]
[340342234,1729075837947,-10576.06366849,0.00011,2]
[340342235,1729075837959,-307.07755376,0.00011,2]
[340342236,1729075837969,-32160.03000479,0.00011,2]
[340342237,1729075837981,-4750.61115174,0.00011,2]
[340342238,1729075837992,-497362.06379322,0.00011,2]
[340342239,1729075838004,-6168.13815709,0.00011,2]
[340342240,1729075838015,-569.24618915,0.00011,2]
[340342241,1729075838026,-575.0,0.00011,2]
[340342242,1729075838037,-539177.29839182,0.00011,2]
[340342243,1729075838050,-24609.1290932,0.00011,2]
[340342244,1729075838061,-19733.33161396,0.00011,2]
[340342245,1729075838075,-515.28705452,0.00011,2]
[340342246,1729075838087,-1107.58937578,0.00011,2]
[340342247,1729075838098,-326.45,0.00011,2]
[340342248,1729075838108,-557.60992902,0.00011,2]
[340342249,1729075838121,-442.25,0.00011,2]
[340342250,1729075838131,-4969.03999999,0.00011,2]
[340342251,1729075838142,-709.08266212,0.00011,2]
[340342252,1729075838153,-3861.57904239,0.00011,2]
[340342253,1729075838178,-1323.56384653,0.00011,2]
[340342254,1729075838189,-443.13092382,0.00011,2]
[340342255,1729075838200,-300.001004,0.00011,2]
[340342259,1729075839653,-503.4787228,0.00011,2]
[340342260,1729075839664,-810.14703584,0.00011,2]
[340342261,1729075839677,-1079.800005,0.00011,2]
[340342262,1729075839688,-322.85018007,0.00011,2]
[340342263,1729075839699,-540.18000005,0.00011,2]
[340342264,1729075839710,-347.78074878,0.00011,2]
[340342265,1729075839721,-500.8463313,0.00011,2]
[340342266,1729075839732,-24104.6103854,0.00011,2]
[340342267,1729075839743,-307.46014093,0.00011,2]
[340342268,1729075839768,-47982.34644844,0.00011,2]
[340342269,1729075839779,-17049.04648691,0.00011,2]
[340342270,1729075839790,-5520.4318433,0.00011,2]
[340342271,1729075839801,-329.19195112,0.00011,2]
[340342272,1729075839815,-725.07205368,0.00011,2]
[340342273,1729075839826,-1560.86681822,0.00011,2]
[340342274,1729075839837,-262.23,0.00011,2]
[340342275,1729075839849,-3593.08737091,0.00011,2]
[340342276,1729075839860,-915.86338484,0.00011,2]
[340342277,1729075839871,-3592.60871217,0.00011,2]
[340342411,1729075842515,-16513.05539984,0.00011,2]
[340342413,1729075842526,-17420.2699562,0.00011,2]
[340342416,1729075842537,-1027.61374868,0.00011,2]
[340342418,1729075842548,-1515.7106818,0.00011,2]
[340342420,1729075842559,-273.86425029,0.00011,2]
[340342422,1729075842570,-311.308985,0.00011,2]
[340342423,1729075842582,-4801.75707524,0.00011,2]
[340342424,1729075842594,-32250.00000001,0.00011,2]
[340342425,1729075842661,-297.59077079,0.00011,2]
[340342426,1729075842673,-3939.92439593,0.00011,2]
[340342427,1729075842687,-833804.79510219,0.00011,2]
[340342428,1729075842701,-1280283.22780248,0.00011,2]
[340342429,1729075842713,-693.33032131,0.00011,2]
[340342430,1729075842725,-6428.28499988,0.00011,2]
[340342431,1729075842821,-33795.41916693,0.00011,2]
[340342432,1729075842833,-935.898057,0.00011,2]
[340342433,1729075842845,-2694.80145435,0.00011,2]
[340342434,1729075842857,-883.32723249,0.00011,2]
[340342443,1729075845539,-10203.07820495,0.00011,2]
[340342444,1729075845550,-514600.13171919,0.00011,2]
[340342445,1729075845572,-695.19249147,0.00011,2]
[340342446,1729075845602,-13002.99408003,0.00011,2]
[340342447,1729075845715,-1299.64863607,0.00010999,2]
[340342448,1729075845724,-31765.74873439,0.00011,2]
[340342449,1729075845736,-150000.35625251,0.00011,2]
[340342450,1729075845747,-357.26507167,0.00011,2]
[340342451,1729075845835,-1900.0,0.00011,2]
[340342452,1729075845847,-2085.87347015,0.00011,2]
[340342453,1729075845859,-715.05,0.00011,2]
[340342454,1729075845871,-375.72,0.00011,2]
[340342455,1729075845882,-608.35712949,0.00011,2]
[340342481,1729075860918,995.28,9.958e-05,2]
[340342482,1729075887112,250.0,9.898e-05,2]
[340342483,1729075942346,2830.94,9.896e-05,2]
[340342484,1729075946720,11345.55,9.893e-05,2]
[340342485,1729075977271,174.73,9.899e-05,2]
[340342486,1729075977483,174.73,9.924e-05,2]
[340342487,1729075977717,174.73,9.948e-05,2]
[340342488,1729075996756,500.0,0.00025475,120]
[340342489,1729076003348,1362.45,9.893e-05,2]
[340342490,1729076049331,250.0,9.893e-05,2]
[340342491,1729076089378,500.0,9.893e-05,2]
[340342492,1729076104846,550.0,0.0001,2]
[340342493,1729076211362,172.64,9.896e-05,2]
[340342494,1729076291355,200.0,9.896e-05,2]
[340342495,1729076332618,462.4,9.892e-05,2]
[340342496,1729076351479,333.0,0.00015,15]
[340342497,1729076354127,165.67,9.92e-05,2]
[340342498,1729076381065,503.03,9.895e-05,2]
[340342499,1729076399399,250.0,9.92e-05,2]
[340342500,1729076450039,509.96,0.0001024,2]
[340342501,1729076540626,681.22,9.919e-05,2]
[340342503,1729076599075,500.0,0.0002627,120]
[340342504,1729076690724,1256.43,8.852e-05,2]
[340342505,1729076899682,-150.0,0.00010599,2]
[340342506,1729076899703,-250.0,0.0001077,2]
[340342507,1729076899724,-499.99,0.00010773,2]
[340342508,1729076899744,-672.7132,0.00010877,2]
[340342509,1729076899765,-4948.11,0.00010899,2]
[340342510,1729076899786,-150.0,0.00010899,2]
[340342511,1729076899808,-27250.9292,0.000109,2]
[340342512,1729076899828,-357.0158,0.000109,2]
[340342513,1729076899849,-2128.6028,0.000109,2]
[340342514,1729076899870,-1730.41682745,0.000109,2]
[340342515,1729076899891,-169.38536069,0.000109,2]
[340342516,1729076899911,-451.07692868,0.000109,2]
[340342517,1729076899932,-159.04,0.00010959,2]
[340342518,1729076899952,-250.0,0.00010959,2]
[340342519,1729076899973,-500.0,0.00010973,2]
[340342520,1729076899992,-505.36067579,0.00010973,2]
[340342521,1729076900013,-974.73647705,0.00010999,2]
[340342522,1729076900035,-217.46328046,0.00010999,2]
[340342523,1729076900056,-527.0,0.00011,2]
[340342524,1729076900081,-56034.15944988,0.00011,2]
[340342526,1729076961575,300.0,0.0002627,120]
[340342527,1729076961792,300.0,0.00026544,120]
[340342528,1729076962189,300.0,0.00026818,120]
[340342529,1729076965415,300.0,0.0002627,120]
[340342530,1729076965620,300.0,0.00026544,120]
[340342531,1729076965807,300.0,0.00026818,120]
[340342532,1729076968984,300.0,0.0002627,120]
[340342533,1729076969189,300.0,0.00026544,120]
[340342534,1729076969381,300.0,0.00026818,120]
[340342535,1729076985918,291.16,9.92e-05,2]
[340342536,1729077007206,300.0,0.00026818,120]
[340342537,1729077010226,300.0,0.00026818,120]
[340342538,1729077014616,300.0,0.00026818,120]
[340342549,1729077031637,-150.0,0.00010827,2]
[340342550,1729077031646,-300.71795246,0.000109,2]
[340342551,1729077031655,-158.24649877,0.000109,2]
[340342552,1729077031668,-6584.0760447,0.00010997,2]
[340342553,1729077031677,-150.0,0.00010999,2]
[340342554,1729077031686,-731.05235779,0.00010999,2]
[340342555,1729077031696,-7781.17705185,0.00011,2]
[340342556,1729077031711,-8344.77802327,0.00011,2]
[340342557,1729077031722,-256318.59212916,0.00011,2]
[340342558,1729077031734,-8741.94797892,0.00011,2]
[340342559,1729077031745,-909.3594811,0.00011,2]
[340342560,1729077031755,-712.8352503,0.00011,2]
[340342561,1729077031767,-6149.07558323,0.00011,2]
[340342562,1729077031778,-295.44814184,0.00011,2]
[340342563,1729077031792,-413.47322908,0.00011,2]
[340342564,1729077031803,-337.36323209,0.00011,2]
[340342565,1729077031815,-5159.26362391,0.00011,2]
[340342566,1729077031826,-3487.72454368,0.00011,2]
[340342567,1729077031837,-7053.36915987,0.00011,2]
[340342568,1729077031848,-811.05669613,0.00011,2]
[340342569,1729077031859,-404.0,0.00011,2]
[340342570,1729077031871,-1137.33097441,0.00011,2]
[340342571,1729077031882,-349.70936002,0.00011,2]
[340342572,1729077031900,-3372.93582456,0.00011,2]
[340342573,1729077031911,-300.0,0.00011,2]
[340342574,1729077031922,-573.03210488,0.00011,2]
[340342575,1729077031933,-300.0,0.00011,2]
[340342576,1729077031944,-3700.0,0.00011,2]
[340342577,1729077031955,-883.0,0.00011,2]
[340342578,1729077031966,-1354.11695543,0.00011,2]
[340342579,1729077031978,-493.5770007,0.00011,2]
[340342580,1729077031988,-264.82796935,0.00011,2]
[340342581,1729077032007,-501.69411009,0.00011,2]
[340342599,1729077037719,-340.5,0.000109,2]
[340342600,1729077037732,-1216.87514475,0.000109,2]
[340342601,1729077037742,-548.28926834,0.00010999,2]
[340342602,1729077037754,-5011.57030971,0.00011,2]
[340342603,1729077038082,-67801.0,0.00011,2]
[340342604,1729077038096,-6488.32485493,0.00011,2]
[340342605,1729077038474,-439219.43160061,0.00011,2]
[340342609,1729077039808,-16966.95,0.00011,2]
[340342610,1729077039860,-784.20000002,0.00011,2]
[340342611,1729077039914,-15202.43855867,0.00011,2]
[340342620,1729077042935,-4707.21868003,0.00011,2]
[340342621,1729077043101,-404.0366,0.00011,2]
[340342626,1729077045800,-250.0,0.00010959,2]
[340342627,1729077045812,-548.28926834,0.00010999,2]
[340342628,1729077045823,-42894.9267579,0.00011,2]
[340342629,1729077046012,-0.09624856,0.00011,2]
[340342630,1729077046031,-13592.5308,0.00011,2]
[340342631,1729077046089,-297.276,0.00011,2]
[340342632,1729077046100,-658.24612596,0.00011,2]
[340342633,1729077083345,300.0,0.00026818,120]
[340342634,1729077088703,300.0,0.00026818,120]
[340342635,1729077146421,300.0,0.00026818,120]
[340342636,1729077152679,300.0,0.00026818,120]
[340342637,1729077198283,513.064369,0.00026707,120]
[340342638,1729077198773,300.0,0.00026818,120]
[340342639,1729077204906,300.0,0.00026818,120]
[340342641,1729077241736,1382.22,0.00010112,2]
[340342642,1729077247474,300.0,0.00026818,120]
[340342643,1729077253295,300.0,0.00026818,120]
[340342644,1729077258264,250.0,9.92e-05,2]
[340342645,1729077306540,500.0,9.92e-05,2]
[340342646,1729077306882,500.0,9.92e-05,2]
[340342647,1729077307218,839.0,9.92e-05,2]
[340342648,1729077315865,300.0,0.00026818,120]
[340342649,1729077320689,300.0,0.00026818,120]
[340342650,1729077379948,300.0,0.00026818,120]
[340342651,1729077384387,300.0,0.00026818,120]
[340342652,1729077429672,300.0,0.00026818,120]
[340342653,1729077430864,200.0,9.92e-05,2]
[340342654,1729077495826,300.0,0.00026818,120]
[340342655,1729077530425,377.73,9.92e-05,2]
[340342656,1729077569729,300.0,0.00026818,120]
[340342657,1729077635135,300.0,0.00026818,120]
[340342658,1729077649569,22392.21,9.92e-05,2]
[340342659,1729077680974,300.0,0.00026818,120]
[340342660,1729077703992,719.93,9.92e-05,2]
[340342661,1729077704248,719.93,9.923e-05,2]
[340342662,1729077704489,719.93,9.925e-05,2]